bitfinex/quotes_BTCUSD_20250614
["timestamp","ask_amount","ask_price","bid_price","bid_amount"]
[1749935404011,0.05749408,105110.0,105100.0,1.07826341]
[1749935405487,0.03846721,105110.0,105100.0,1.07826341]
[1749935405908,0.0479806,105110.0,105100.0,1.07826341]
[1749935406961,0.03846721,105110.0,105100.0,1.07826341]
[1749935409202,0.0289541,105110.0,105100.0,1.07826341]
[1749935409413,0.0289541,105110.0,105100.0,1.10656371]
[1749935411888,0.0194409,105110.0,105100.0,1.10656371]
[1749935412113,0.0289541,105110.0,105100.0,1.10656371]
[1749935414235,0.03788344,105110.0,105100.0,1.10656371]
[1749935414652,0.03788344,105110.0,105100.0,0.4947751]
[1749935414851,0.03788344,105110.0,105100.0,0.88210341]
[1749935415027,0.0289541,105110.0,105100.0,1.07818341]
[1749935415275,0.02837025,105110.0,105100.0,1.07818341]
[1749935415509,0.03788349,105110.0,105100.0,1.07818341]
[1749935415674,0.0289541,105110.0,105100.0,1.07818341]
[1749935415853,0.03788349,105110.0,105100.0,1.07818341]
[1749935416054,0.0289541,105110.0,105100.0,1.07818341]
[1749935416443,0.03788349,105110.0,105100.0,1.07818341]
[1749935417041,0.04739688,105110.0,105100.0,1.07818341]
[1749935417587,1.0458486,105120.0,105110.0,0.19979051]
[1749935417794,0.81156109,105120.0,105110.0,0.38677051]
[1749935417984,0.81156109,105120.0,105110.0,0.42717051]
[1749935420176,0.19977248,105120.0,105110.0,0.23109051]
[1749935420377,0.81156109,105120.0,105110.0,0.48168153]
[1749935420820,0.81156109,105120.0,105110.0,0.42717051]
[1749935420970,0.81156109,105120.0,105110.0,0.43668408]
[1749935421399,0.81156109,105120.0,105110.0,0.44619747]
[1749935421627,0.06207454,105130.0,105120.0,0.23137159]
[1749935421838,0.25225165,105130.0,105120.0,0.24088434]
[1749935422060,0.86404026,105130.0,105120.0,0.250397]
[1749935422283,0.86404026,105130.0,105120.0,0.25990948]
[1749935422493,0.86404026,105130.0,105120.0,0.250397]
[1749935422704,0.86404026,105130.0,105120.0,0.25990957]
[1749935422914,0.86404026,105130.0,105120.0,0.250397]
[1749935423132,0.86404026,105130.0,105120.0,0.25990957]
[1749935423789,0.85452878,105130.0,105120.0,0.250397]
[1749935423995,0.85452878,105130.0,105120.0,0.25990957]
[1749935424426,0.66428804,105130.0,105120.0,0.25990957]
[1749935425703,0.05249943,105130.0,105120.0,0.25990957]
[1749935425911,0.66428804,105130.0,105120.0,0.25990957]
[1749935429122,0.67380007,105130.0,105120.0,0.25990957]
[1749935429551,0.68270779,105130.0,105120.0,0.25990957]
[1749935430641,0.68272848,105130.0,105120.0,0.25990957]
[1749935430849,0.67380007,105130.0,105120.0,0.26942205]
[1749935431047,0.68272848,105130.0,105120.0,0.250397]
[1749935431259,0.8539457,105130.0,105120.0,0.0316]
[1749935431476,0.95009494,105130.0,105120.0,0.18724]
[1749935431691,0.94116651,105130.0,105120.0,0.18724]
[1749935431913,0.95009524,105130.0,105120.0,0.18724]
[1749935432122,0.85394602,105130.0,105120.0,0.18724]
[1749935432331,0.84501729,105130.0,105120.0,0.18724]
[1749935432785,0.88254526,105130.0,105120.0,0.18724]
[1749935433606,0.88254525,105130.0,105120.0,0.18724]
[1749935433815,0.87361629,105130.0,105120.0,0.18724]
[1749935434055,0.88254526,105130.0,105120.0,0.18724]
[1749935434483,0.87361629,105130.0,105120.0,0.18724]
[1749935434677,0.88254526,105130.0,105120.0,0.18724]
[1749935435506,0.87361629,105130.0,105120.0,0.18724]
[1749935435724,0.88254526,105130.0,105120.0,0.18724]
[1749935435971,1.09493624,105130.0,105120.0,0.0316]
[1749935436172,0.47421866,105130.0,105120.0,0.18724]
[1749935436380,1.09493636,105130.0,105120.0,0.18724]
[1749935436800,1.08600727,105130.0,105120.0,0.18724]
[1749935437010,1.09493637,105130.0,105120.0,0.18724]
[1749935437456,1.08600727,105130.0,105120.0,0.18724]
[1749935437626,1.09493637,105130.0,105120.0,0.18724]
[1749935439440,1.08600727,105130.0,105120.0,0.18724]
[1749935439645,1.09493637,105130.0,105120.0,0.18724]
[1749935439832,1.08600727,105130.0,105120.0,0.18724]
[1749935440030,1.09493637,105130.0,105120.0,0.18724]
[1749935441127,0.99878715,105130.0,105120.0,0.18724]
[1749935441716,0.99878715,105130.0,105120.0,0.0316]
[1749935441865,0.99878715,105130.0,105120.0,0.18724]
[1749935442855,0.37806944,105130.0,105120.0,0.18724]
[1749935443057,0.99878715,105130.0,105120.0,0.18724]
[1749935443259,0.98985805,105130.0,105120.0,0.18724]
[1749935443462,1.08600727,105130.0,105120.0,0.18724]
[1749935443667,1.09493637,105130.0,105120.0,0.18724]
[1749935443870,1.08600727,105130.0,105120.0,0.18724]
[1749935444079,1.09493637,105130.0,105120.0,0.18724]
[1749935444498,1.08600727,105130.0,105120.0,0.18724]
[1749935444730,1.68770101,105130.0,105110.0,0.0307]
[1749935444943,1.41385169,105120.0,105110.0,0.0307]
[1749935445152,1.80745123,105120.0,105110.0,0.18742]
[1749935445362,2.00745123,105120.0,105110.0,0.18742]
[1749935445610,1.99854289,105120.0,105110.0,0.18742]
[1749935445843,2.00745129,105120.0,105110.0,0.18742]
[1749935446073,0.78387454,105120.0,105110.0,0.18742]
[1749935446272,2.00745176,105120.0,105110.0,0.18742]
[1749935446719,1.38675428,105120.0,105110.0,0.18742]
[1749935446929,1.39566314,105120.0,105110.0,0.18742]
[1749935447189,2.00745175,105120.0,105110.0,0.18842]
[1749935447830,1.99854289,105120.0,105110.0,0.18842]
[1749935448043,2.00745175,105120.0,105110.0,0.18842]
[1749935448276,1.99854289,105120.0,105110.0,0.18942]
[1749935448473,2.00745175,105120.0,105110.0,0.18942]
[1749935449577,2.00745176,105120.0,105110.0,0.18942]
[1749935450393,1.91900232,105120.0,105110.0,0.18942]
[1749935450852,1.30721371,105120.0,105110.0,0.18942]
[1749935451483,1.29830484,105120.0,105110.0,0.18942]
[1749935451689,1.3072137,105120.0,105110.0,0.18942]
[1749935451954,1.30721357,105120.0,105110.0,0.18942]
[1749935452581,1.30721364,105120.0,105110.0,0.18942]
[1749935452791,1.30721368,105120.0,105110.0,0.18942]
[1749935453414,1.29830484,105120.0,105110.0,0.18942]
[1749935453643,1.30721368,105120.0,105110.0,0.18942]
[1749935453945,1.33581668,105120.0,105110.0,0.18942]
[1749935454148,1.32690784,105120.0,105110.0,0.18942]
[1749935454573,1.33581669,105120.0,105110.0,0.18942]
[1749935455008,1.32690784,105120.0,105110.0,0.18942]
[1749935455211,1.34472552,105120.0,105110.0,0.18942]
[1749935455631,1.34474673,105120.0,105110.0,0.18942]
[1749935455841,1.34474674,105120.0,105110.0,0.18942]
[1749935457283,1.34474674,105120.0,105110.0,0.18926]
[1749935457924,1.33581668,105120.0,105110.0,0.18926]
[1749935458342,1.34474673,105120.0,105110.0,0.18926]
[1749935458561,1.33581668,105120.0,105110.0,0.18926]
[1749935458773,1.34474674,105120.0,105110.0,0.18926]
[1749935460228,1.95653535,105120.0,105110.0,0.18926]
[1749935460441,1.94760529,105120.0,105110.0,0.18926]
[1749935460877,1.95653535,105120.0,105110.0,0.18926]
[1749935461111,1.94760529,105120.0,105110.0,0.18926]
[1749935461311,1.95653534,105120.0,105110.0,0.18926]
[1749935461928,1.94760529,105120.0,105110.0,0.18926]
[1749935462774,1.95653533,105120.0,105110.0,0.18926]
[1749935463631,1.94760529,105120.0,105110.0,0.18926]
[1749935463847,0.82910733,105120.0,105110.0,0.18926]
[1749935464072,2.04375451,105120.0,105110.0,0.18926]
[1749935464577,2.05267442,105120.0,105110.0,0.18926]
[1749935464798,2.04375451,105120.0,105110.0,0.18978]
[1749935465023,2.05267442,105120.0,105110.0,0.18978]
[1749935465451,2.04375451,105120.0,105110.0,0.18978]
[1749935465675,2.05267442,105120.0,105110.0,0.0327]
[1749935465944,2.05267442,105120.0,105110.0,0.18978]
[1749935466629,2.02407142,105120.0,105110.0,0.18978]
[1749935466873,2.01515151,105120.0,105110.0,0.18978]
[1749935467372,2.02407141,105120.0,105110.0,0.18978]
[1749935467822,2.02407142,105120.0,105110.0,0.18978]
[1749935468046,2.02407142,105120.0,105110.0,0.0327]
[1749935468286,2.05861284,105120.0,105110.0,0.0327]
[1749935468493,2.05861284,105120.0,105110.0,0.18982]
[1749935468716,0.87315006,105120.0,105110.0,0.18982]
[1749935468929,2.09672728,105120.0,105110.0,0.18982]
[1749935469146,2.09672734,105120.0,105110.0,0.18982]
[1749935469366,2.08780655,105120.0,105110.0,0.18882]
[1749935469579,2.05861314,105120.0,105110.0,0.18782]
[1749935469786,2.04969236,105120.0,105110.0,0.18782]
[1749935470201,2.05861314,105120.0,105110.0,0.18782]
[1749935470901,2.05861313,105120.0,105110.0,0.18798]
[1749935471080,2.04969236,105120.0,105110.0,0.18798]
[1749935471531,2.05861314,105120.0,105110.0,0.18798]
[1749935471960,2.05861315,105120.0,105110.0,0.18798]
[1749935472191,2.04969236,105120.0,105110.0,0.18798]
[1749935472420,0.69542507,105120.0,105110.0,0.18798]
[1749935472648,1.92792292,105120.0,105110.0,0.18798]
[1749935472856,1.92792297,105120.0,105110.0,0.18798]
[1749935473067,1.9279228,105120.0,105110.0,0.18798]
[1749935473278,1.91900229,105120.0,105110.0,0.18798]
[1749935473489,1.9279228,105120.0,105110.0,0.18798]
[1749935473918,1.91900229,105120.0,105110.0,0.18798]
[1749935474554,1.92792279,105120.0,105110.0,0.18798]
[1749935475011,1.92793294,105120.0,105110.0,0.18798]
[1749935475423,1.92793293,105120.0,105110.0,0.18798]
[1749935475836,1.91900229,105120.0,105110.0,0.18798]
[1749935476065,1.92793294,105120.0,105110.0,0.18798]
[1749935476274,1.91900229,105120.0,105110.0,0.18798]
[1749935476504,1.92793293,105120.0,105110.0,0.18798]
[1749935476711,1.92793294,105120.0,105110.0,0.18798]
[1749935476949,1.95653594,105120.0,105110.0,0.18798]
[1749935477170,1.94760529,105120.0,105110.0,0.18798]
[1749935477411,1.95653592,105120.0,105110.0,0.18798]
[1749935477621,1.95653593,105120.0,105110.0,0.18798]
[1749935478280,1.94760529,105120.0,105110.0,0.18798]
[1749935478486,1.95653593,105120.0,105110.0,0.18798]
[1749935478702,1.94760529,105120.0,105110.0,0.18798]
[1749935479121,1.95652147,105120.0,105110.0,0.18798]
[1749935479534,1.95652148,105120.0,105110.0,0.18798]
[1749935479979,1.94760529,105120.0,105110.0,0.18798]
[1749935480182,1.95652148,105120.0,105110.0,0.18798]
[1749935480518,1.94760529,105120.0,105110.0,0.18798]
[1749935480717,1.95652148,105120.0,105110.0,0.18798]
[1749935481121,2.05267071,105120.0,105110.0,0.18798]
[1749935481332,2.04375451,105120.0,105110.0,0.18798]
[1749935481532,2.05267072,105120.0,105110.0,0.18798]
[1749935481732,2.05267073,105120.0,105110.0,0.18798]
[1749935481939,1.95652151,105120.0,105110.0,0.18798]
[1749935482146,1.94760529,105120.0,105110.0,0.18798]
[1749935482486,1.95652151,105120.0,105110.0,0.18798]
[1749935482712,1.97652151,105120.0,105110.0,0.18798]
[1749935482912,1.96760529,105120.0,105110.0,0.18798]
[1749935483114,1.97652151,105120.0,105110.0,0.18798]
[1749935483331,1.96760529,105120.0,105110.0,0.0307]
[1749935483533,2.07267073,105120.0,105110.0,0.18814]
[1749935483745,2.07829536,105120.0,105110.0,0.0307]
[1749935483995,2.08721172,105120.0,105110.0,0.1881]
[1749935484416,2.08721176,105120.0,105110.0,0.1881]
[1749935484704,2.07829536,105120.0,105110.0,0.1881]
[1749935484927,2.08721176,105120.0,105110.0,0.1881]
[1749935485120,2.42721176,105120.0,105110.0,0.1881]
[1749935485333,2.41829536,105120.0,105110.0,0.1881]
[1749935485534,2.42721176,105120.0,105110.0,0.1881]
[1749935485946,2.32214614,105120.0,105110.0,0.1881]
[1749935486369,2.33106254,105120.0,105110.0,0.1881]
[1749935486792,2.33106253,105120.0,105110.0,0.1881]
[1749935487407,2.33106239,105120.0,105110.0,0.1881]
[1749935487626,2.33106235,105120.0,105110.0,0.1881]
[1749935488037,2.32214614,105120.0,105110.0,0.1881]
[1749935488648,2.33106235,105120.0,105110.0,0.1881]
[1749935489058,2.32214614,105120.0,105110.0,0.1881]
[1749935489271,2.33106235,105120.0,105110.0,0.1881]
[1749935489464,2.32214614,105120.0,105110.0,0.1881]
[1749935489694,2.33106235,105120.0,105110.0,0.1881]
[1749935489898,2.32214614,105120.0,105110.0,0.1881]
[1749935490570,2.33106235,105120.0,105110.0,0.1881]
[1749935491180,2.32214614,105120.0,105110.0,0.1881]
[1749935491773,2.28760529,105120.0,105110.0,0.1881]
[1749935491994,2.09733082,105120.0,105110.0,0.1881]
[1749935492196,2.29652149,105120.0,105110.0,0.1881]
[1749935492506,2.28760529,105120.0,105110.0,0.1881]
[1749935492714,2.29652148,105120.0,105110.0,0.1881]
[1749935493921,2.29652147,105120.0,105110.0,0.1881]
[1749935494136,2.29653593,105120.0,105110.0,0.1881]
[1749935494350,2.28760529,105120.0,105110.0,0.1881]
[1749935494559,2.29653593,105120.0,105110.0,0.1881]
[1749935494731,2.28760529,105120.0,105110.0,0.1881]
[1749935494867,2.29653593,105120.0,105110.0,0.1881]
[1749935496194,2.28760529,105120.0,105110.0,0.1881]
[1749935496395,2.29653593,105120.0,105110.0,0.1881]
[1749935496838,2.28760529,105120.0,105110.0,0.1881]
[1749935497741,2.29653593,105120.0,105110.0,0.1881]
[1749935497940,2.29653592,105120.0,105110.0,0.1881]
[1749935498142,2.29653593,105120.0,105110.0,0.1881]
[1749935498504,2.28760529,105120.0,105110.0,0.1881]
[1749935498935,2.29653593,105120.0,105110.0,0.1881]
[1749935500598,2.28760529,105120.0,105110.0,0.1881]
[1749935500942,2.29653592,105120.0,105110.0,0.1881]
[1749935501347,2.28760529,105120.0,105110.0,0.1881]
[1749935501550,2.29653592,105120.0,105110.0,0.1881]
[1749935501762,2.28760529,105120.0,105110.0,0.1881]
[1749935501948,2.33465011,105120.0,105110.0,0.1881]
[1749935502973,2.33464971,105120.0,105110.0,0.1881]
[1749935503339,2.32571948,105120.0,105110.0,0.1881]
[1749935503550,2.33464971,105120.0,105110.0,0.1881]
[1749935504404,1.10214226,105120.0,105110.0,0.1881]
[1749935504652,0.24621366,105120.0,105110.0,0.43619973]
[1749935504904,0.83949454,105120.0,105110.0,0.42668625]
[1749935505137,0.84446781,105120.0,105110.0,0.42668625]
[1749935505385,0.853397,105120.0,105110.0,0.39740426]
[1749935505607,0.85339701,105120.0,105110.0,0.3878906]
[1749935506129,0.853397,105120.0,105110.0,0.3878906]
[1749935506387,0.853397,105120.0,105110.0,0.39740426]
[1749935506614,0.84388443,105120.0,105110.0,0.39740426]
[1749935506831,0.83495524,105120.0,105110.0,0.39740426]
[1749935507048,0.84388443,105120.0,105110.0,0.39740426]
[1749935507480,0.23209582,105120.0,105110.0,0.40691774]
[1749935507682,0.84388442,105120.0,105110.0,0.40691774]
[1749935507891,0.84388442,105120.0,105110.0,0.43860426]
[1749935508112,0.84388443,105120.0,105110.0,0.44811783]
[1749935508331,0.64411275,105120.0,105110.0,0.45763112]
[1749935508540,0.65362567,105120.0,105110.0,0.45763112]
[1749935508757,0.66313824,105120.0,105110.0,0.45763122]
[1749935508959,0.65420906,105120.0,105110.0,0.45763122]
[1749935509161,0.66313864,105120.0,105110.0,0.45763122]
[1749935509803,0.85339739,105120.0,105110.0,0.45763122]
[1749935510008,0.85339741,105120.0,105110.0,0.45763122]
[1749935510210,0.84446781,105120.0,105110.0,0.45763122]
[1749935510396,0.84446781,105120.0,105110.0,0.43860426]
[1749935510636,0.84446781,105120.0,105110.0,0.44811783]
[1749935511317,0.85339743,105120.0,105110.0,0.44811783]
[1749935511966,0.84388486,105120.0,105110.0,0.44811783]
[1749935512385,0.84388486,105120.0,105110.0,0.45763131]
[1749935513046,0.84388486,105120.0,105110.0,0.44811783]
[1749935513710,0.84388486,105120.0,105110.0,0.45763131]
[1749935514611,0.83495524,105120.0,105110.0,0.45763131]
[1749935514820,0.84388486,105120.0,105110.0,0.45763131]
[1749935515252,0.83495524,105120.0,105110.0,0.45763131]
[1749935515492,0.83495524,105120.0,105110.0,0.44811783]
[1749935515722,0.02793389,105120.0,105110.0,0.56329373]
[1749935515974,0.05588826,105120.0,105110.0,0.55378053]
[1749935516169,0.05588826,105120.0,105110.0,0.56329382]
[1749935516375,0.06540089,105120.0,105110.0,0.56329382]
[1749935516588,0.04637499,105120.0,105110.0,0.56329327]
[1749935516791,0.04637493,105120.0,105110.0,0.56329327]
[1749935516990,0.04637492,105120.0,105110.0,0.56329327]
[1749935517410,0.0374461,105120.0,105110.0,0.56329327]
[1749935517616,0.05588771,105120.0,105110.0,0.56329327]
[1749935518033,0.04695885,105120.0,105110.0,0.56329327]
[1749935518689,0.0558877,105120.0,105110.0,0.56329327]
[1749935519104,0.05588767,105120.0,105110.0,0.56429327]
[1749935519311,0.04637501,105120.0,105110.0,0.46814405]
[1749935519907,0.03744619,105120.0,105110.0,0.46914405]
[1749935522629,0.02793353,105120.0,105110.0,0.46914405]
[1749935522870,0.03744619,105120.0,105110.0,0.46914405]
[1749935523097,0.6492348,105120.0,105110.0,0.46914405]
[1749935525004,0.65874764,105120.0,105110.0,0.45963085]
[1749935525232,0.64923471,105120.0,105110.0,0.46914405]
[1749935525487,0.65874737,105120.0,105110.0,0.46914405]
[1749935525691,0.6492348,105120.0,105110.0,0.46914405]
[1749935526978,0.65812752,105120.0,105110.0,0.46914405]
[1749935527631,0.65814663,105120.0,105110.0,0.46914405]
[1749935528509,0.6492348,105120.0,105110.0,0.46914405]
[1749935528721,0.65814663,105120.0,105110.0,0.46914405]
[1749935528937,0.6492348,105120.0,105110.0,0.46914405]
[1749935529359,0.65814748,105120.0,105110.0,0.46914405]
[1749935529565,0.65814746,105120.0,105110.0,0.46914405]
[1749935529780,0.6492348,105120.0,105110.0,0.46914405]
[1749935530189,0.65814746,105120.0,105110.0,0.27054405]
[1749935530423,0.65814746,105120.0,105110.0,0.46850405]
[1749935530647,0.6492348,105120.0,105110.0,0.46850405]
[1749935531098,0.65814746,105120.0,105110.0,0.46850405]
[1749935531315,0.6492348,105120.0,105110.0,0.44943756]
[1749935531533,0.6492348,105120.0,105110.0,0.45895076]
[1749935531759,0.6676603,105120.0,105110.0,0.45895076]
[1749935532266,0.65874764,105120.0,105110.0,0.45895076]
[1749935532477,0.6676603,105120.0,105110.0,0.45895076]
[1749935533163,0.66767597,105120.0,105110.0,0.45895076]
[1749935534740,0.65874764,105120.0,105110.0,0.45895076]
[1749935534944,0.66767597,105120.0,105110.0,0.45895076]
[1749935535178,0.65874764,105120.0,105110.0,0.45895076]
[1749935535289,0.66767597,105120.0,105110.0,0.45895076]
[1749935535507,0.65874764,105120.0,105110.0,0.45895076]
[1749935535769,0.65816313,105120.0,105110.0,0.45895076]
[1749935536161,0.66767597,105120.0,105110.0,0.45895076]
[1749935536586,0.01783717,105120.0,105110.0,1.26313035]
[1749935536812,0.00890884,105120.0,105110.0,0.99134174]
[1749935537035,0.00890884,105120.0,105110.0,2.24323319]
[1749935537263,0.00890884,105120.0,105110.0,1.60313035]
[1749935537519,0.00890884,105120.0,105110.0,1.63144458]
[1749935537746,0.00890884,105120.0,105110.0,1.66825039]
[1749935537993,0.00890884,105120.0,105110.0,1.62944458]
[1749935538267,0.00890884,105120.0,105110.0,1.63860458]
[1749935538503,0.00890884,105120.0,105110.0,1.63360458]
[1749935538761,0.00890884,105120.0,105110.0,1.63660458]
[1749935539002,0.00890884,105120.0,105110.0,2.25339319]
[1749935539267,0.02519127,105160.0,105150.0,0.24222445]
[1749935539517,0.39371848,105160.0,105150.0,0.39922454]
[1749935539795,1.02670518,105160.0,105150.0,0.39922454]
[1749935540042,0.41491657,105160.0,105150.0,0.4087344]
[1749935540274,0.39589822,105160.0,105150.0,0.41824399]
[1749935540521,0.59564156,105160.0,105150.0,0.39922454]
[1749935541435,0.59564156,105160.0,105150.0,0.40022454]
[1749935541657,0.5861327,105160.0,105150.0,0.40122454]
[1749935542372,0.5861327,105160.0,105150.0,0.40122463]
[1749935544853,0.5861327,105160.0,105150.0,0.38220446]
[1749935545072,0.56711453,105160.0,105150.0,0.19192]
[1749935545286,0.56711453,105160.0,105150.0,0.035]
[1749935545516,1.1103835,105160.0,105150.0,0.19184]
[1749935546163,1.1103835,105160.0,105150.0,0.192]
[1749935546378,1.20653272,105160.0,105150.0,0.192]
[1749935547271,0.66326375,105160.0,105150.0,0.192]
[1749935551564,0.57601311,105160.0,105150.0,0.192]
[1749935552007,0.56711453,105160.0,105150.0,0.192]
[1749935552230,0.57601311,105160.0,105150.0,0.192]
[1749935552510,0.5760109,105160.0,105150.0,0.192]
[1749935552741,0.56711453,105160.0,105150.0,0.192]
[1749935552953,0.5760109,105160.0,105150.0,0.192]
[1749935553604,0.5760081,105160.0,105150.0,0.192]
[1749935553795,0.56711453,105160.0,105150.0,0.192]
[1749935554014,1.1103835,105160.0,105150.0,0.192]
[1749935554227,1.11927707,105160.0,105150.0,0.192]
[1749935554684,1.1103835,105160.0,105150.0,0.192]
[1749935555322,1.11927333,105160.0,105150.0,0.192]
[1749935555540,0.57600436,105160.0,105150.0,0.192]
[1749935555750,0.57599867,105160.0,105150.0,0.192]
[1749935556218,0.56711453,105160.0,105150.0,0.192]
[1749935556461,0.57598916,105160.0,105150.0,0.192]
[1749935556686,1.31164911,105160.0,105150.0,0.035]
[1749935556907,1.30277448,105160.0,105150.0,0.19168]
[1749935557123,1.31164913,105160.0,105150.0,0.19168]
[1749935557364,1.30277448,105160.0,105150.0,0.19168]
[1749935557578,1.31164913,105160.0,105150.0,0.19168]
[1749935557797,1.21549992,105160.0,105150.0,0.19168]
[1749935558661,1.21550996,105160.0,105150.0,0.19168]
[1749935558863,1.21555044,105160.0,105150.0,0.19168]
[1749935559580,1.21555043,105160.0,105150.0,0.19168]
[1749935560910,1.20662526,105160.0,105150.0,0.19168]
[1749935561376,1.21555042,105160.0,105150.0,0.19168]
[1749935561599,1.20662526,105160.0,105150.0,0.19168]
[1749935561815,1.21555042,105160.0,105150.0,0.19168]
[1749935562291,1.21555043,105160.0,105150.0,0.19168]
[1749935562507,1.20662526,105160.0,105150.0,0.19168]
[1749935562712,1.21555043,105160.0,105150.0,0.19168]
[1749935562995,1.20662526,105160.0,105150.0,0.19168]
[1749935563480,1.27462685,105160.0,105150.0,0.19168]
[1749935563725,1.37970125,105160.0,105150.0,0.19168]
[1749935563970,1.28355201,105160.0,105150.0,0.19168]
[1749935564447,1.28355202,105160.0,105150.0,0.19168]
[1749935564948,1.28355198,105160.0,105150.0,0.19168]
[1749935565433,1.283552,105160.0,105150.0,0.19168]
[1749935565852,1.27462685,105160.0,105150.0,0.19168]
[1749935566567,1.283552,105160.0,105150.0,0.19168]
[1749935566782,1.27462685,105160.0,105150.0,0.19168]
[1749935566990,1.28355198,105160.0,105150.0,0.19168]
[1749935567222,1.28355199,105160.0,105150.0,0.19168]
[1749935567451,1.27462685,105160.0,105150.0,0.19168]
[1749935567674,1.28355199,105160.0,105150.0,0.19168]
[1749935567886,1.27462685,105160.0,105150.0,0.19168]
[1749935568124,1.283552,105160.0,105150.0,0.19168]
[1749935568340,1.283452,105160.0,105150.0,0.19168]
[1749935568784,0.93452685,105160.0,105150.0,0.19168]
[1749935569233,0.94345199,105160.0,105150.0,0.19168]
[1749935569452,0.94345238,105160.0,105150.0,0.47596028]
[1749935569660,0.94345238,105160.0,105150.0,0.19168]
[1749935569879,0.94345236,105160.0,105150.0,0.19168]
[1749935570095,0.93452685,105160.0,105150.0,0.19168]
[1749935570302,0.94345236,105160.0,105150.0,0.19168]
[1749935570510,0.93452685,105160.0,105150.0,0.19168]
[1749935570740,0.94345236,105160.0,105150.0,0.19168]
[1749935571718,0.93452685,105160.0,105150.0,0.19168]
[1749935571957,0.94345237,105160.0,105150.0,0.19168]
[1749935572176,0.93452685,105160.0,105150.0,0.19168]
[1749935572426,0.94345237,105160.0,105150.0,0.19168]
[1749935572868,0.93452685,105160.0,105150.0,0.19168]
[1749935573077,0.94345237,105160.0,105150.0,0.19168]
[1749935573506,0.94345236,105160.0,105150.0,0.19168]
[1749935573998,0.93452685,105160.0,105150.0,0.19168]
[1749935574487,0.94345266,105160.0,105150.0,0.19168]
[1749935575370,1.03960188,105160.0,105150.0,0.19132]
[1749935575579,1.03067607,105160.0,105150.0,0.19132]
[1749935575803,0.94345267,105160.0,105150.0,0.19132]
[1749935576431,0.94345268,105160.0,105150.0,0.19132]
[1749935576653,0.93452685,105160.0,105150.0,0.19132]
[1749935576870,0.94345268,105160.0,105150.0,0.19132]
[1749935577082,0.93452685,105160.0,105150.0,0.19132]
[1749935577496,0.94345268,105160.0,105150.0,0.19132]
[1749935577922,0.32325629,105160.0,105150.0,0.19132]
[1749935578134,0.94345268,105160.0,105150.0,0.19132]
[1749935578570,0.93452685,105160.0,105150.0,0.19132]
[1749935578790,0.94345268,105160.0,105150.0,0.19132]
[1749935579043,0.93452685,105160.0,105150.0,0.19132]
[1749935579253,0.94345268,105160.0,105150.0,0.19132]
[1749935579682,0.93452685,105160.0,105150.0,0.19132]
[1749935579894,0.94345268,105160.0,105150.0,0.19132]
[1749935580106,0.93452685,105160.0,105150.0,0.19132]
[1749935580327,0.94345268,105160.0,105150.0,0.19132]
[1749935580778,0.93452685,105160.0,105150.0,0.19132]
[1749935580989,0.94345268,105160.0,105150.0,0.19132]
[1749935581418,0.93452685,105160.0,105150.0,0.19132]
[1749935581668,0.94345268,105160.0,105150.0,0.19132]
[1749935581878,0.93452685,105160.0,105150.0,0.19128]
[1749935582305,0.94345279,105160.0,105150.0,0.19128]
[1749935582514,0.93452685,105160.0,105150.0,0.19128]
[1749935582738,0.94345279,105160.0,105150.0,0.19128]
[1749935583343,0.94345278,105160.0,105150.0,0.19128]
[1749935583579,0.93452685,105160.0,105150.0,0.19128]
[1749935583793,0.94345278,105160.0,105150.0,0.19128]
[1749935584156,0.94345224,105160.0,105150.0,0.19128]
[1749935585419,0.08378964,105160.0,105150.0,1.01177528]
[1749935585646,0.08378953,105160.0,105150.0,0.40050472]
[1749935585869,0.68613523,105160.0,105150.0,0.41952435]
[1749935586060,0.67604151,105160.0,105150.0,0.42903403]
[1749935586467,0.67662601,105160.0,105150.0,0.41952435]
[1749935586669,0.6760412,105160.0,105150.0,0.42903403]
[1749935586870,0.6760412,105160.0,105150.0,0.27275403]
[1749935587080,0.48780475,105160.0,105150.0,0.42911403]
[1749935587278,0.00950922,105160.0,105150.0,0.38660381]
[1749935587484,0.03745174,105160.0,105150.0,0.39908436]
[1749935587694,0.02794252,105160.0,105150.0,0.40859404]
[1749935587897,0.02794203,105160.0,105150.0,0.40859413]
[1749935588098,0.02794203,105160.0,105150.0,0.41810381]
[1749935588490,0.04664379,105160.0,105150.0,0.51425303]
[1749935588704,0.05615283,105160.0,105150.0,0.50474335]
[1749935588917,0.05615283,105160.0,105150.0,1.13503318]
[1749935589128,0.05615277,105160.0,105150.0,1.13503318]
[1749935589350,0.05615275,105160.0,105150.0,1.12552359]
[1749935589563,0.04722879,105160.0,105150.0,1.13503318]
[1749935589974,0.03712018,105160.0,105150.0,1.13503318]
[1749935590192,0.04662904,105160.0,105150.0,1.13503318]
[1749935590397,0.03771975,105160.0,105150.0,1.13503318]
[1749935590828,0.04662908,105160.0,105150.0,1.13503318]
[1749935591045,0.03771975,105160.0,105150.0,0.52376262]
[1749935591261,0.04662904,105160.0,105150.0,1.13503318]
[1749935591465,0.03771975,105160.0,105150.0,1.13503318]
[1749935592373,0.03771966,105160.0,105150.0,1.13503318]
[1749935593759,0.03771966,105160.0,105150.0,0.52376262]
[1749935593997,0.03771966,105160.0,105150.0,0.4276134]
[1749935595354,0.02821089,105160.0,105150.0,0.4276134]
[1749935595574,0.03771966,105160.0,105150.0,0.4276134]
[1749935596007,0.03771975,105160.0,105150.0,0.4276134]
[1749935596229,0.03771975,105160.0,105150.0,0.4683334]
[1749935596437,0.03712007,105160.0,105150.0,0.4683334]
[1749935596654,0.04662884,105160.0,105150.0,0.4683334]
[1749935597114,0.03771966,105160.0,105150.0,0.4683334]
[1749935597322,0.04662884,105160.0,105150.0,0.4683334]
[1749935598503,0.0561377,105160.0,105150.0,0.4683334]
[1749935599181,0.04722852,105160.0,105150.0,0.4683334]
[1749935599625,0.02821089,105160.0,105150.0,0.4683334]
[1749935599836,0.02821089,105160.0,105150.0,1.07960396]
[1749935601860,0.0187023,105160.0,105150.0,1.78702374]
[1749935602140,0.22890456,105170.0,105160.0,0.21871323]
[1749935602363,0.22890456,105170.0,105160.0,0.24941323]
[1749935602591,0.23841223,105170.0,105160.0,0.24941323]
[1749935602814,0.8591903,105170.0,105160.0,0.24941323]
[1749935603024,0.85028594,105170.0,105160.0,0.24941323]
[1749935603239,0.85919032,105170.0,105160.0,0.24941323]
[1749935603490,0.85028594,105170.0,105160.0,0.24941323]
[1749935603711,0.86869831,105170.0,105160.0,0.24941323]
[1749935603943,0.24852334,105170.0,105160.0,0.24941323]
[1749935604165,0.8597939,105170.0,105160.0,0.24941323]
[1749935604598,0.86869833,105170.0,105160.0,0.24941323]